{"text_format":"3","workbook":"xlsx","n_sheets":6,"sheets":["SEMESTR","PUNKTY ZALICZENIOWE","BUDŻET","WYDATKI MIESIĘCZNE NETTO","WYDATKI W SEMESTRZE","KSIĄŻKI"],"not_rendered":{"defined_names":21},"read":"whole","date_system":"1900"}

{"sheet":"SEMESTR","index":0,"n_rows":29,"n_cols":9,"rows_kept":29,"merged":[[2,3,2,4]]}
[null,"HARMONOGRAM ZAJĘĆ"]
[null,"SEMESTR ZIMOWY"]
[null,null,"GODZINA ROZPOCZĘCIA","INTERWAŁ",null,"ROK"]
[null,null,"09:00:00",60,"(w minutach)"]
[null,"GODZINA ","PON","WT","ŚR","CZW","PT","SO","N"]
[null,{"$f":"Godzina_rozpoczęcia+TIME(0,(ROW(A1)-1)*Interwał,0)","v":"09:00:00"},"Śniadanie","Śniadanie","Śniadanie","Śniadanie","Śniadanie"]
[null,"10:00:00","Biznes: Aula 2"]
[null,"11:00:00",{"$nulls":3},"Fizyka: Lab \nBudynek J, sala 309"]
[null,"12:00:00"]
[null,"13:00:00"]
[null,"14:00:00"]
[null,"15:00:00"]
[null,"16:00:00"]
[null,"17:00:00"]
[null,"18:00:00"]
[null,"19:00:00"]
[null,"20:00:00"]
[null,"21:00:00"]
[null,"22:00:00"]
[null,"23:00:00"]
[null,1]
[null,1.0416666666666665]
[null,1.0833333333333335]
[null,1.125]
[null,1.1666666666666665]
[null,1.2083333333333335]
[null,1.25]
[null,1.2916666666666665]
[null,1.3333333333333335]

{"sheet":"PUNKTY ZALICZENIOWE","index":1,"n_rows":17,"n_cols":8,"rows_kept":17}
[null,"UCZELNIA"]
[null,"PLAN PUNKTÓW ZALICZENIOWYCH"]
[null,"Nazwa stopnia naukowego",{"$f":"Rok","v":"ROK"}]
[null,"OGÓLNY POSTĘP",null,"OGÓLNY POSTĘP"]
[null,{"$f":"AVERAGE(Zajęcia[OCENA])","v":3.5},{"$f":"\"Bieżąca średnia ocen: \"&IFERROR(TEXT(AVERAGEIF(Zajęcia[UKOŃCZONE],\"Tak\",Zajęcia[OCENA]),\"0,00\"),\"0,00\")","v":"Bieżąca średnia ocen: 3,50"},{"$f":"COUNTIF(Zajęcia[UKOŃCZONE],\"Tak\")/COUNTA(Zajęcia[NAZWA ZAJĘĆ])","v":0.6666666666666666},{"$f":"\"Ukończono \"&TEXT(COUNTIF(Zajęcia[UKOŃCZONE],\"Tak\")/COUNTA(Zajęcia[NAZWA ZAJĘĆ]),\"0%\")","v":"Ukończono 67%"}]
[null,"Uwaga: to podsumowanie punktów zaliczeniowych jest automatycznie wypełniane wpisami z tabeli Zajęcia na uczelni znajdującej się poniżej"]
[null,"WYMAGANIE","SUMA PUNKTÓW ZALICZENIOWYCH","ZDOBYTE","WYMAGANE"]
[null,"Kierunek główny",{"$f":"IF(SUMIF(Zajęcia[WYMAGANIE],'PUNKTY ZALICZENIOWE'!$B8,Zajęcia[PUNKTY ZALICZENIOWE])=0,\"0\",SUMIF(Zajęcia[WYMAGANIE],'PUNKTY ZALICZENIOWE'!$B8,Zajęcia[PUNKTY ZALICZENIOWE]))","v":4},{"$f":"SUMIFS(Zajęcia[PUNKTY ZALICZENIOWE],Zajęcia[WYMAGANIE],'PUNKTY ZALICZENIOWE'!$B8,Zajęcia[UKOŃCZONE],\"Tak\")","v":4},{"$f":"SUMIF(Zajęcia[WYMAGANIE],'PUNKTY ZALICZENIOWE'!$B8,Zajęcia[PUNKTY ZALICZENIOWE])-SUMIFS(Zajęcia[PUNKTY ZALICZENIOWE],Zajęcia[WYMAGANIE],'PUNKTY ZALICZENIOWE'!$B8,Zajęcia[UKOŃCZONE],\"Tak\")","v":0}]
[null,"Kierunek dodatkowy",{"$f":"IF(SUMIF(Zajęcia[WYMAGANIE],'PUNKTY ZALICZENIOWE'!$B9,Zajęcia[PUNKTY ZALICZENIOWE])=0,\"0\",SUMIF(Zajęcia[WYMAGANIE],'PUNKTY ZALICZENIOWE'!$B9,Zajęcia[PUNKTY ZALICZENIOWE]))","v":3},{"$f":"SUMIFS(Zajęcia[PUNKTY ZALICZENIOWE],Zajęcia[WYMAGANIE],'PUNKTY ZALICZENIOWE'!$B9,Zajęcia[UKOŃCZONE],\"Tak\")","v":0},{"$f":"SUMIF(Zajęcia[WYMAGANIE],'PUNKTY ZALICZENIOWE'!$B9,Zajęcia[PUNKTY ZALICZENIOWE])-SUMIFS(Zajęcia[PUNKTY ZALICZENIOWE],Zajęcia[WYMAGANIE],'PUNKTY ZALICZENIOWE'!$B9,Zajęcia[UKOŃCZONE],\"Tak\")","v":3}]
[null,"Przedmiot do wyboru",{"$f":"IF(SUMIF(Zajęcia[WYMAGANIE],'PUNKTY ZALICZENIOWE'!$B10,Zajęcia[PUNKTY ZALICZENIOWE])=0,\"0\",SUMIF(Zajęcia[WYMAGANIE],'PUNKTY ZALICZENIOWE'!$B10,Zajęcia[PUNKTY ZALICZENIOWE]))","v":2},{"$f":"SUMIFS(Zajęcia[PUNKTY ZALICZENIOWE],Zajęcia[WYMAGANIE],'PUNKTY ZALICZENIOWE'!$B10,Zajęcia[UKOŃCZONE],\"Tak\")","v":2},{"$f":"SUMIF(Zajęcia[WYMAGANIE],'PUNKTY ZALICZENIOWE'!$B10,Zajęcia[PUNKTY ZALICZENIOWE])-SUMIFS(Zajęcia[PUNKTY ZALICZENIOWE],Zajęcia[WYMAGANIE],'PUNKTY ZALICZENIOWE'!$B10,Zajęcia[UKOŃCZONE],\"Tak\")","v":0}]
[null,"Studia ogólne",{"$f":"IF(SUMIF(Zajęcia[WYMAGANIE],'PUNKTY ZALICZENIOWE'!$B11,Zajęcia[PUNKTY ZALICZENIOWE])=0,\"0\",SUMIF(Zajęcia[WYMAGANIE],'PUNKTY ZALICZENIOWE'!$B11,Zajęcia[PUNKTY ZALICZENIOWE]))","v":"0"},{"$f":"SUMIFS(Zajęcia[PUNKTY ZALICZENIOWE],Zajęcia[WYMAGANIE],'PUNKTY ZALICZENIOWE'!$B11,Zajęcia[UKOŃCZONE],\"Tak\")","v":0},{"$f":"SUMIF(Zajęcia[WYMAGANIE],'PUNKTY ZALICZENIOWE'!$B11,Zajęcia[PUNKTY ZALICZENIOWE])-SUMIFS(Zajęcia[PUNKTY ZALICZENIOWE],Zajęcia[WYMAGANIE],'PUNKTY ZALICZENIOWE'!$B11,Zajęcia[UKOŃCZONE],\"Tak\")","v":0}]
[null,"Suma",{"$f":"SUBTOTAL(109,'PUNKTY ZALICZENIOWE'!$C$8:$C$11)","v":9},{"$f":"SUBTOTAL(109,'PUNKTY ZALICZENIOWE'!$D$8:$D$11)","v":6},{"$f":"SUBTOTAL(109,'PUNKTY ZALICZENIOWE'!$E$8:$E$11)","v":3}]
[null,"Zajęcia"]
[null,"NAZWA ZAJĘĆ","NR ZAJĘĆ","WYMAGANIE","PUNKTY ZALICZENIOWE","UKOŃCZONE","OCENA","SEMESTR"]
[null,"Zajęcia 1","Numer","Kierunek główny",4,"Tak",{"v":4,"d":"4.0"},"Semestr 1"]
[null,"Zajęcia 2","Numer","Kierunek dodatkowy",3,"Nie",null,"Semestr 1"]
[null,"Zajęcia 3","Numer","Przedmiot do wyboru",2,"Tak",{"v":3,"d":"3.0"},"Semestr 1"]

{"sheet":"BUDŻET","index":2,"n_rows":15,"n_cols":4,"rows_kept":15,"merged":[[5,1,5,2]]}
[null,{"$f":"Uczelnia","v":"UCZELNIA"}]
[null,"ŚLEDZENIE BUDŻETU"]
[null,"Mój budżet",{"$f":"Rok","v":"ROK"}]
[null,"PROCENT WYDANEGO PRZYCHODU"]
[null,{"$f":"WYDATKI_MIESIĘCZNE_NETTO/PRZYCHODY_MIESIĘCZNE_NETTO","v":{"v":0.7454545454545455,"d":"1 zł"}}]
[null,{"$f":"B5","v":0.7454545454545455}]
[null,"PRZYCHÓD MIESIĘCZNY NETTO","WYDATKI MIESIĘCZNE NETTO","SALDO"]
[null,{"$f":"C10","v":{"v":2750,"d":"2,750 zł"}},{"$f":"'WYDATKI MIESIĘCZNE NETTO'!C4+'WYDATKI W SEMESTRZE'!D4","v":{"v":2050,"d":"2,050 zł"}},{"$f":"PRZYCHODY_MIESIĘCZNE_NETTO-WYDATKI_MIESIĘCZNE_NETTO","v":{"v":700,"d":"700 zł"}}]
[null,"Miesiące w semestrze",4]
[null,"PRZYCHÓD MIESIĘCZNY",{"$f":"SUM(Przychód_miesięczny[KWOTA])","v":{"v":2750,"d":"2,750 zł"}}]
[null,"POZYCJA","KWOTA"]
[null,"Przychód stały",{"v":1500,"d":"1,500 zł"}]
[null,"Pomoc finansowa",{"v":500,"d":"500 zł"}]
[null,"Pożyczki",{"v":500,"d":"500 zł"}]
[null,"Inne przychody",{"v":250,"d":"250 zł"}]

{"sheet":"WYDATKI MIESIĘCZNE NETTO","index":3,"n_rows":15,"n_cols":3,"rows_kept":15}
[null,{"$f":"Uczelnia","v":"UCZELNIA"}]
[null,"ŚLEDZENIE BUDŻETU"]
[null,"Wydatki miesięczne",{"$f":"Rok","v":"ROK"}]
[null,"WYDATKI MIESIĘCZNE",{"$f":"SUM(Wydatki_miesięczne[KWOTA])","v":{"v":1675,"d":"1,675 zł"}}]
[null,"POZYCJA","KWOTA"]
[null,"Czynsz",{"v":300,"d":"300 zł"}]
[null,"Rachunki",{"v":50,"d":"50 zł"}]
[null,"Telefon komórkowy",{"v":75,"d":"75 zł"}]
[null,"Artykuły spożywcze",{"v":250,"d":"250 zł"}]
[null,"Wydatki na samochody",{"v":50,"d":"50 zł"}]
[null,"Pożyczki dla studentów",{"v":500,"d":"500 zł"}]
[null,"Karty kredytowe",{"v":275,"d":"275 zł"}]
[null,"Ubezpieczenie",{"v":125,"d":"125 zł"}]
[null,"Rozrywka",{"v":50,"d":"50 zł"}]
[null,"Różne",{"v":0,"d":"0 zł"}]

{"sheet":"WYDATKI W SEMESTRZE","index":4,"n_rows":11,"n_cols":4,"rows_kept":11}
[null,{"$f":"Uczelnia","v":"UCZELNIA"}]
[null,"ŚLEDZENIE BUDŻETU"]
[null,"Wydatki w semestrze",{"$f":"Rok","v":"ROK"}]
[null,"WYDATKI W SEMESTRZE (całkowite/miesięczne)",{"$f":"SUM(Wydatki_w_semestrze[KWOTA])","v":{"v":1500,"d":"1,500 zł"}},{"$f":"SUM(Wydatki_w_semestrze[NA MIESIĄC])","v":{"v":375,"d":"375 zł"}}]
[null,"POZYCJA","KWOTA","NA MIESIĄC"]
[null,"Czesne",{"v":750,"d":"750 zł"},{"$f":"Wydatki_w_semestrze[[#This Row],[KWOTA]]/Miesiące_w_semestrze","v":{"v":187.5,"d":"188 zł"}}]
[null,"Opłaty związane z laboratorium",{"v":250,"d":"250 zł"},{"$f":"Wydatki_w_semestrze[[#This Row],[KWOTA]]/Miesiące_w_semestrze","v":{"v":62.5,"d":"63 zł"}}]
[null,"Książki",{"v":500,"d":"500 zł"},{"$f":"Wydatki_w_semestrze[[#This Row],[KWOTA]]/Miesiące_w_semestrze","v":{"v":125,"d":"125 zł"}}]
[null,"Wpłaty",{"v":0,"d":"0 zł"},{"$f":"Wydatki_w_semestrze[[#This Row],[KWOTA]]/Miesiące_w_semestrze","v":{"v":0,"d":"0 zł"}}]
[null,"Transport",{"v":0,"d":"0 zł"},{"$f":"Wydatki_w_semestrze[[#This Row],[KWOTA]]/Miesiące_w_semestrze","v":{"v":0,"d":"0 zł"}}]
[null,"Inne opłaty",{"v":0,"d":"0 zł"},{"$f":"Wydatki_w_semestrze[[#This Row],[KWOTA]]/Miesiące_w_semestrze","v":{"v":0,"d":"0 zł"}}]

{"sheet":"KSIĄŻKI","index":5,"n_rows":7,"n_cols":7,"rows_kept":7}
[null,{"$f":"Uczelnia","v":"UCZELNIA"}]
[null,"ŚLEDZENIE KSIĄŻEK"]
[null,"Lista książek"]
[null,"TYTUŁ","AUTOR","ZAJĘCIA","GDZIE KUPIĆ?","ISBN","UWAGI"]
[null,"Tytuł książki","Autor","Zajęcia","Lokalizacja","Numer"]
[null,"Tytuł książki","Autor","Zajęcia","Lokalizacja","Numer"]
[null,"Tytuł książki","Autor","Zajęcia","Lokalizacja","Numer"]